[Event "Live Chess"]
[Site "Chess.com"]
[Date "2024.06.01"]
[Round "-"]
[White "elephantgerrald"]
[Black "NottheBishopSacrifice"]
[Result "0-1"]
[WhiteElo "716"]
[BlackElo "2109"]
[TimeControl "300"]
[EndTime "9:21:03 PDT"]
[Termination "NottheBishopSacrifice won by checkmate"]

1. e4 {[%clk 0:04:58.9]} 1... c6 {[%clk 0:04:58.8]} 2. Nf3 {[%clk 0:04:55.8]}
2... d5 {[%clk 0:04:58.7]} 3. exd5 {[%clk 0:04:54.5]} 3... cxd5 {[%clk
0:04:57.5]} 4. d4 {[%clk 0:04:50.6]} 4... Nc6 {[%clk 0:04:57.4]} 5. Bb5 {[%clk
0:04:46.5]} 5... Bg4 {[%clk 0:04:54.1]} 6. O-O {[%clk 0:04:43.3]} 6... Bxf3
{[%clk 0:04:52.9]} 7. Qxf3 {[%clk 0:04:40.6]} 7... e6 {[%clk 0:04:52.5]} 8.
Bxc6+ {[%clk 0:04:38.4]} 8... bxc6 {[%clk 0:04:51.3]} 9. Qc3 {[%clk 0:04:36.6]}
9... Rc8 {[%clk 0:04:49.4]} 10. Bf4 {[%clk 0:04:34.2]} 10... Bd6 {[%clk
0:04:48.4]} 11. Bxd6 {[%clk 0:04:32.8]} 11... Qxd6 {[%clk 0:04:48.3]} 12. Nd2
{[%clk 0:04:31]} 12... Nf6 {[%clk 0:04:46.5]} 13. Nf3 {[%clk 0:04:29.8]} 13...
O-O {[%clk 0:04:44.2]} 14. Qc5 {[%clk 0:04:28.3]} 14... Qxc5 {[%clk 0:04:42.6]}
15. dxc5 {[%clk 0:04:27.3]} 15... Ne4 {[%clk 0:04:42.3]} 16. Rfe1 {[%clk
0:04:25.9]} 16... Nxc5 {[%clk 0:04:41.1]} 17. b3 {[%clk 0:04:20.8]} 17... Ne4
{[%clk 0:04:39]} 18. Ne5 {[%clk 0:04:17.7]} 18... c5 {[%clk 0:04:37.4]} 19. f3
{[%clk 0:04:13.8]} 19... Nd6 {[%clk 0:04:36.9]} 20. Nd7 {[%clk 0:04:12.1]} 20...
Rfd8 {[%clk 0:04:35.2]} 21. Ne5 {[%clk 0:04:10.5]} 21... f6 {[%clk 0:04:34.5]}
22. Ng4 {[%clk 0:04:06.2]} 22... Kf7 {[%clk 0:04:33.1]} 23. Rad1 {[%clk
0:04:02.6]} 23... Nb5 {[%clk 0:04:30]} 24. Rd3 {[%clk 0:03:57.5]} 24... c4
{[%clk 0:04:28.4]} 25. bxc4 {[%clk 0:03:55.8]} 25... Rxc4 {[%clk 0:04:28.3]} 26.
a4 {[%clk 0:03:52.5]} 26... Rxa4 {[%clk 0:04:26]} 27. Rb3 {[%clk 0:03:48]} 27...
Nd4 {[%clk 0:04:22.8]} 28. Rb7+ {[%clk 0:03:46.6]} 28... Kg6 {[%clk 0:04:22.4]}
29. h4 {[%clk 0:03:40.2]} 29... h5 {[%clk 0:04:19.1]} 30. Ne3 {[%clk 0:03:27.9]}
30... Ra2 {[%clk 0:04:17.3]} 31. g4 {[%clk 0:03:23.2]} 31... Nxf3+ {[%clk
0:04:14.6]} 32. Kf2 {[%clk 0:03:21.4]} 32... Nxe1 {[%clk 0:04:14.1]} 33. Kxe1
{[%clk 0:03:20.3]} 33... d4 {[%clk 0:04:12]} 34. gxh5+ {[%clk 0:03:18.1]} 34...
Kxh5 {[%clk 0:04:08.7]} 35. Rb5+ {[%clk 0:03:13.3]} 35... e5 {[%clk 0:04:06]}
36. Nf5 {[%clk 0:03:09.1]} 36... Rxc2 {[%clk 0:04:00]} 37. Nxg7+ {[%clk
0:03:07.1]} 37... Kxh4 {[%clk 0:03:59.3]} 38. Nf5+ {[%clk 0:03:04.5]} 38... Kg4
{[%clk 0:03:58.7]} 39. Nh6+ {[%clk 0:02:59.4]} 39... Kf3 {[%clk 0:03:57.4]} 40.
Rb3+ {[%clk 0:02:56.2]} 40... Rc3 {[%clk 0:03:56.8]} 41. Rb2 {[%clk 0:02:53.6]}
41... d3 {[%clk 0:03:55.2]} 42. Rf2+ {[%clk 0:02:51.1]} 42... Ke4 {[%clk
0:03:54.8]} 43. Kd2 {[%clk 0:02:47.1]} 43... Rc2+ {[%clk 0:03:54]} 44. Kd1
{[%clk 0:02:46]} 44... Rxf2 {[%clk 0:03:53.9]} 45. Ng4 {[%clk 0:02:44.3]} 45...
Rf1+ {[%clk 0:03:53.8]} 46. Kd2 {[%clk 0:02:43]} 46... Rc8 {[%clk 0:03:50.3]}
47. Nxf6+ {[%clk 0:02:40.5]} 47... Rxf6 {[%clk 0:03:48.1]} 48. Kd1 {[%clk
0:02:39.6]} 48... Rf1+ {[%clk 0:03:46.6]} 49. Kd2 {[%clk 0:02:38.6]} 49... Rc2#
{[%clk 0:03:46.4]} 0-1

[Event "Live Chess"]
[Site "Chess.com"]
[Date "2024.06.01"]
[Round "-"]
[White "TC2304"]
[Black "KGreenGator"]
[Result "1-0"]
[WhiteElo "2334"]
[BlackElo "1766"]
[TimeControl "300"]
[EndTime "9:21:05 PDT"]
[Termination "TC2304 won by resignation"]

1. h4 {[%clk 0:04:56.8]} 1... e5 {[%clk 0:04:57.6]} 2. a4 {[%clk 0:04:54.7]}
2... d5 {[%clk 0:04:56.3]} 3. e3 {[%clk 0:04:53.1]} 3... Be7 {[%clk 0:04:54.9]}
4. d4 {[%clk 0:04:52.5]} 4... e4 {[%clk 0:04:48.9]} 5. h5 {[%clk 0:04:51.5]}
5... Nf6 {[%clk 0:04:44.8]} 6. c4 {[%clk 0:04:50.4]} 6... Bg4 {[%clk 0:04:42]}
7. Be2 {[%clk 0:04:48.8]} 7... Bxe2 {[%clk 0:04:40.1]} 8. Nxe2 {[%clk
0:04:48.7]} 8... c6 {[%clk 0:04:38.2]} 9. cxd5 {[%clk 0:04:42.7]} 9... cxd5
{[%clk 0:04:36.9]} 10. Nbc3 {[%clk 0:04:41.5]} 10... Nc6 {[%clk 0:04:34.3]} 11.
Nf4 {[%clk 0:04:34.4]} 11... Nb4 {[%clk 0:04:31.5]} 12. Qe2 {[%clk 0:04:07.5]}
12... a6 {[%clk 0:04:27.3]} 13. b3 {[%clk 0:03:56.6]} 13... Bd6 {[%clk 0:04:24]}
14. O-O {[%clk 0:03:42.6]} 14... Bxf4 {[%clk 0:04:21.7]} 15. exf4 {[%clk
0:03:42.5]} 15... Nd3 {[%clk 0:04:17.3]} 16. Ba3 {[%clk 0:03:32.3]} 16... Nxf4
{[%clk 0:04:04.5]} 17. Qe3 {[%clk 0:03:29.9]} 17... N4xh5 {[%clk 0:03:45.9]} 18.
f3 {[%clk 0:03:22.2]} 18... Ng3 {[%clk 0:03:34.9]} 19. fxe4 {[%clk 0:03:18.3]}
19... Ngxe4 {[%clk 0:03:31.3]} 20. Rxf6 {[%clk 0:03:02.5]} 20... gxf6 {[%clk
0:03:27]} 21. Nxe4 {[%clk 0:02:56]} 21... dxe4 {[%clk 0:03:20.7]} 22. Qxe4+
{[%clk 0:02:55.9]} 22... Kd7 {[%clk 0:03:18.7]} 23. Qxb7+ {[%clk 0:02:48.3]}
23... Qc7 {[%clk 0:03:08.8]} 24. Qd5+ {[%clk 0:02:47.8]} 24... Kc8 {[%clk
0:02:48.1]} 25. Qxa8+ {[%clk 0:02:45.8]} 25... Qb8 {[%clk 0:02:46.9]} 26. Rc1+
{[%clk 0:02:42.8]} 1-0

[Event "Live Chess"]
[Site "Chess.com"]
[Date "2024.06.01"]
[Round "-"]
[White "degringolade64"]
[Black "LaupMiths"]
[Result "1-0"]
[WhiteElo "2055"]
[BlackElo "1886"]
[TimeControl "300"]
[EndTime "9:21:23 PDT"]
[Termination "degringolade64 won by resignation"]

1. e4 {[%clk 0:04:56.7]} 1... d6 {[%clk 0:04:56.9]} 2. d4 {[%clk 0:04:55.1]}
2... g6 {[%clk 0:04:56.3]} 3. Nc3 {[%clk 0:04:53.9]} 3... Bg7 {[%clk 0:04:55.7]}
4. Be3 {[%clk 0:04:53.2]} 4... Nd7 {[%clk 0:04:52.5]} 5. f4 {[%clk 0:04:44.8]}
5... a6 {[%clk 0:04:51.2]} 6. Nf3 {[%clk 0:04:38.2]} 6... Ngf6 {[%clk 0:04:42]}
7. h3 {[%clk 0:04:35.9]} 7... O-O {[%clk 0:04:39.2]} 8. e5 {[%clk 0:04:34.2]}
8... Nh5 {[%clk 0:04:33.3]} 9. Qd2 {[%clk 0:04:21.6]} 9... Ng3 {[%clk
0:04:30.4]} 10. Rg1 {[%clk 0:04:20.2]} 10... Nxf1 {[%clk 0:04:28.8]} 11. Rxf1
{[%clk 0:04:19.4]} 11... c5 {[%clk 0:04:27.9]} 12. dxc5 {[%clk 0:04:08.6]} 12...
dxe5 {[%clk 0:04:19.4]} 13. fxe5 {[%clk 0:04:03.2]} 13... Nxe5 {[%clk 0:04:18]}
14. Qxd8 {[%clk 0:04:00.4]} 14... Rxd8 {[%clk 0:04:17.9]} 15. Nxe5 {[%clk
0:03:59]} 15... Bxe5 {[%clk 0:04:16.1]} 16. Ne4 {[%clk 0:03:40.4]} 16... Bf5
{[%clk 0:04:10.1]} 17. Nd2 {[%clk 0:03:34.4]} 17... Bxc2 {[%clk 0:03:56.5]} 18.
Rc1 {[%clk 0:03:32.9]} 18... Bd3 {[%clk 0:03:43.7]} 19. b4 {[%clk 0:03:28.6]}
19... Bg3+ {[%clk 0:03:31.3]} 20. Rf2 {[%clk 0:03:22]} 20... f5 {[%clk
0:03:12.5]} 21. Nc4 {[%clk 0:03:11.8]} 21... Bxc4 {[%clk 0:03:05.2]} 22. Rxc4
{[%clk 0:03:09.9]} 22... Rd3 {[%clk 0:03:02.7]} 23. Ke2 {[%clk 0:03:01]} 23...
Rad8 {[%clk 0:02:57.9]} 24. Rf3 {[%clk 0:02:52.8]} 24... Be5 {[%clk 0:02:37.9]}
25. Bg5 {[%clk 0:02:46.3]} 25... Rxf3 {[%clk 0:02:32]} 26. gxf3 {[%clk
0:02:45.1]} 26... Rd7 {[%clk 0:02:30.5]} 27. a4 {[%clk 0:02:41.9]} 27... Bg7
{[%clk 0:02:25]} 28. b5 {[%clk 0:02:38.6]} 28... h6 {[%clk 0:02:21.2]} 29. Be3
{[%clk 0:02:33]} 29... axb5 {[%clk 0:02:13.5]} 30. axb5 {[%clk 0:02:32.9]} 30...
e5 {[%clk 0:02:05.3]} 31. c6 {[%clk 0:02:32]} 31... bxc6 {[%clk 0:02:03.3]} 32.
bxc6 {[%clk 0:02:31.9]} 1-0

[Event "Live Chess"]
[Site "Chess.com"]
[Date "2024.06.01"]
[Round "-"]
[White "Harry_Li"]
[Black "JohanKjeldahl"]
[Result "1-0"]
[WhiteElo "2158"]
[BlackElo "1863"]
[TimeControl "300"]
[EndTime "9:21:29 PDT"]
[Termination "Harry_Li won by resignation"]

1. d4 {[%clk 0:04:58.2]} 1... Nf6 {[%clk 0:04:56.3]} 2. c4 {[%clk 0:04:57.4]}
2... e5 {[%clk 0:04:54.9]} 3. dxe5 {[%clk 0:04:56.3]} 3... Ng4 {[%clk
0:04:53.1]} 4. Nf3 {[%clk 0:04:55.8]} 4... Bc5 {[%clk 0:04:50]} 5. e3 {[%clk
0:04:54.5]} 5... Nc6 {[%clk 0:04:48.2]} 6. Nc3 {[%clk 0:04:52.6]} 6... Ngxe5
{[%clk 0:04:46.6]} 7. Be2 {[%clk 0:04:52.2]} 7... O-O {[%clk 0:04:45.2]} 8. Nxe5
{[%clk 0:04:51.4]} 8... Nxe5 {[%clk 0:04:43.4]} 9. O-O {[%clk 0:04:50.9]} 9...
d6 {[%clk 0:04:41.8]} 10. f4 {[%clk 0:04:49.9]} 10... Ng6 {[%clk 0:04:38.3]} 11.
Kh1 {[%clk 0:04:49]} 11... Bd7 {[%clk 0:04:31.2]} 12. e4 {[%clk 0:04:46.5]}
12... Bc6 {[%clk 0:04:28.1]} 13. f5 {[%clk 0:04:23.4]} 13... Ne5 {[%clk
0:04:24.3]} 14. f6 {[%clk 0:04:14.5]} 14... g6 {[%clk 0:04:17.7]} 15. Qd2 {[%clk
0:04:04.7]} 15... Nd7 {[%clk 0:04:03.9]} 16. Qh6 {[%clk 0:03:29.6]} 16... Nxf6
{[%clk 0:04:01.2]} 17. Bg5 {[%clk 0:03:28.3]} 17... Bd4 {[%clk 0:03:57.8]} 18.
Qh4 {[%clk 0:03:27.2]} 18... Kg7 {[%clk 0:03:41.2]} 19. Rad1 {[%clk 0:02:44.3]}
19... Be5 {[%clk 0:03:38.8]} 20. Nd5 {[%clk 0:02:39.9]} 20... Bxd5 {[%clk
0:03:35.5]} 21. Rxd5 {[%clk 0:02:39]} 21... Bxb2 {[%clk 0:03:22.5]} 22. e5
{[%clk 0:02:36.8]} 22... Bxe5 {[%clk 0:03:19.5]} 23. Rxe5 {[%clk 0:02:35.3]} 1-0

[Event "Live Chess"]
[Site "Chess.com"]
[Date "2024.06.01"]
[Round "-"]
[White "TigerTank70"]
[Black "ProfPoisson"]
[Result "1-0"]
[WhiteElo "2179"]
[BlackElo "1234"]
[TimeControl "300"]
[EndTime "9:21:32 PDT"]
[Termination "TigerTank70 won on time"]

1. e4 {[%clk 0:04:57.5]} 1... e5 {[%clk 0:04:57.6]} 2. Nf3 {[%clk 0:04:56.6]}
2... Nf6 {[%clk 0:04:55.5]} 3. d4 {[%clk 0:04:54.5]} 3... Nxe4 {[%clk
0:04:53.9]} 4. dxe5 {[%clk 0:04:53.1]} 4... d5 {[%clk 0:04:52.7]} 5. exd6 {[%clk
0:04:51.2]} 5... Bxd6 {[%clk 0:04:47]} 6. Bd3 {[%clk 0:04:48.7]} 6... Bf5 {[%clk
0:04:34.7]} 7. Qe2 {[%clk 0:04:40.7]} 7... O-O {[%clk 0:04:31.1]} 8. Bxe4 {[%clk
0:04:38.3]} 8... Bxe4 {[%clk 0:04:29.3]} 9. O-O {[%clk 0:04:33.8]} 9... Re8
{[%clk 0:04:25.9]} 10. Nc3 {[%clk 0:04:30.8]} 10... Bc6 {[%clk 0:04:07.8]} 11.
Qd3 {[%clk 0:04:17.7]} 11... Bxf3 {[%clk 0:04:01]} 12. Qxf3 {[%clk 0:04:16]}
12... Qh4 {[%clk 0:03:56.4]} 13. g3 {[%clk 0:04:09.7]} 13... Qh3 {[%clk
0:03:39.9]} 14. Qxb7 {[%clk 0:04:03.8]} 14... Nd7 {[%clk 0:03:33.5]} 15. Qg2
{[%clk 0:04:02.1]} 15... Qf5 {[%clk 0:03:24]} 16. f3 {[%clk 0:03:36.4]} 16...
Ne5 {[%clk 0:03:18.2]} 17. Bf4 {[%clk 0:03:31.7]} 17... Bc5+ {[%clk 0:03:07.1]}
18. Kh1 {[%clk 0:03:28.9]} 18... Ng6 {[%clk 0:02:51.2]} 19. Ne4 {[%clk
0:03:07.3]} 19... Nxf4 {[%clk 0:02:47]} 20. gxf4 {[%clk 0:03:05.7]} 20... Bb6
{[%clk 0:02:37.4]} 21. Qg3 {[%clk 0:02:44.8]} 21... Re6 {[%clk 0:02:31]} 22. Ng5
{[%clk 0:02:34.7]} 22... Rg6 {[%clk 0:02:27]} 23. Qg4 {[%clk 0:02:29.2]} 23...
Qxc2 {[%clk 0:02:14.5]} 24. f5 {[%clk 0:02:25.7]} 24... Rf6 {[%clk 0:01:58.5]}
25. Qe4 {[%clk 0:02:15.9]} 25... Qxe4 {[%clk 0:01:56.6]} 26. fxe4 {[%clk
0:02:14.4]} 26... Rd8 {[%clk 0:01:50.4]} 27. Rad1 {[%clk 0:02:12.6]} 27... Rfd6
{[%clk 0:01:39.7]} 28. Rxd6 {[%clk 0:02:11.3]} 28... Rxd6 {[%clk 0:01:37.6]} 29.
Nf3 {[%clk 0:02:10.9]} 29... h5 {[%clk 0:01:31.6]} 30. Kg2 {[%clk 0:02:10]}
30... g6 {[%clk 0:01:26.1]} 31. e5 {[%clk 0:02:04.5]} 31... Rd3 {[%clk
0:01:21.2]} 32. f6 {[%clk 0:02:02.1]} 32... Bd4 {[%clk 0:01:17.5]} 33. Rc1
{[%clk 0:01:53]} 33... c5 {[%clk 0:01:08.6]} 34. Nxd4 {[%clk 0:01:47.2]} 34...
cxd4 {[%clk 0:01:06.2]} 35. Rc8+ {[%clk 0:01:45.8]} 35... Kh7 {[%clk 0:01:05.7]}
36. Rf8 {[%clk 0:01:44.6]} 36... Rd2+ {[%clk 0:01:02.1]} 37. Kf3 {[%clk
0:01:43.1]} 37... Rxb2 {[%clk 0:00:55.4]} 38. Rxf7+ {[%clk 0:01:42.1]} 38... Kg8
{[%clk 0:00:52.5]} 39. Rd7 {[%clk 0:01:41.2]} 39... Rb8 {[%clk 0:00:45.2]} 40.
e6 {[%clk 0:01:39.7]} 40... Rf8 {[%clk 0:00:42.9]} 41. f7+ {[%clk 0:01:32.8]}
41... Kg7 {[%clk 0:00:40.7]} 42. Rxd4 {[%clk 0:01:29.5]} 42... g5 {[%clk
0:00:34.6]} 43. Ke4 {[%clk 0:01:25.2]} 43... g4 {[%clk 0:00:33]} 44. Ke5 {[%clk
0:01:22.2]} 44... Rb8 {[%clk 0:00:19]} 45. a4 {[%clk 0:01:13]} 45... Rb3 {[%clk
0:00:13]} 46. Rd8 {[%clk 0:01:11.4]} 46... Re3+ {[%clk 0:00:11.5]} 47. Kf4
{[%clk 0:01:07.7]} 47... Rxe6 {[%clk 0:00:09.9]} 48. f8=Q+ {[%clk 0:01:05.6]}
48... Kh7 {[%clk 0:00:08.2]} 49. Qg8+ {[%clk 0:01:03.8]} 49... Kh6 {[%clk
0:00:05.5]} 50. Qg5+ {[%clk 0:01:01.9]} 50... Kh7 {[%clk 0:00:03.3]} 51. Rd7+
{[%clk 0:01:01.6]} 1-0

[Event "Live Chess"]
[Site "Chess.com"]
[Date "2024.06.01"]
[Round "-"]
[White "hapehansen"]
[Black "Ninifu"]
[Result "0-1"]
[WhiteElo "2246"]
[BlackElo "2066"]
[TimeControl "300"]
[EndTime "9:21:32 PDT"]
[Termination "Ninifu won by resignation"]

1. Nf3 {[%clk 0:04:56.3]} 1... Nf6 {[%clk 0:04:58.6]} 2. c4 {[%clk 0:04:55.1]}
2... g6 {[%clk 0:04:57.8]} 3. Nc3 {[%clk 0:04:53.6]} 3... Bg7 {[%clk 0:04:57.1]}
4. e4 {[%clk 0:04:52.5]} 4... d6 {[%clk 0:04:56.6]} 5. d4 {[%clk 0:04:51.5]}
5... O-O {[%clk 0:04:56]} 6. Be2 {[%clk 0:04:50]} 6... e5 {[%clk 0:04:55.4]} 7.
d5 {[%clk 0:04:49.2]} 7... a5 {[%clk 0:04:53.9]} 8. Bg5 {[%clk 0:04:38.3]} 8...
Na6 {[%clk 0:04:51.9]} 9. Nd2 {[%clk 0:04:32.1]} 9... Qe8 {[%clk 0:04:51]} 10.
O-O {[%clk 0:04:25.1]} 10... Bd7 {[%clk 0:04:49.7]} 11. a3 {[%clk 0:04:18.2]}
11... h6 {[%clk 0:04:46.6]} 12. Be3 {[%clk 0:04:15.9]} 12... Qe7 {[%clk
0:04:40]} 13. Rb1 {[%clk 0:04:12.1]} 13... Nh7 {[%clk 0:04:25.1]} 14. b4 {[%clk
0:04:09]} 14... axb4 {[%clk 0:04:17.4]} 15. axb4 {[%clk 0:04:08.9]} 15... f5
{[%clk 0:04:16.8]} 16. exf5 {[%clk 0:04:06.8]} 16... gxf5 {[%clk 0:04:15.1]} 17.
f4 {[%clk 0:04:05.8]} 17... exf4 {[%clk 0:04:04.2]} 18. Bxf4 {[%clk 0:04:02.3]}
18... Bxc3 {[%clk 0:04:03.2]} 0-1

[Event "Live Chess"]
[Site "Chess.com"]
[Date "2024.06.01"]
[Round "-"]
[White "Inglaterra"]
[Black "ALEX_UA_69"]
[Result "0-1"]
[WhiteElo "2038"]
[BlackElo "1757"]
[TimeControl "300"]
[EndTime "9:21:35 PDT"]
[Termination "ALEX_UA_69 won on time"]

1. c4 {[%clk 0:04:57.4]} 1... e5 {[%clk 0:04:58.8]} 2. Nc3 {[%clk 0:04:55.6]}
2... Nf6 {[%clk 0:04:58]} 3. Nf3 {[%clk 0:04:55]} 3... Nc6 {[%clk 0:04:54.7]} 4.
g3 {[%clk 0:04:53.2]} 4... d5 {[%clk 0:04:52.5]} 5. cxd5 {[%clk 0:04:51.4]} 5...
Nxd5 {[%clk 0:04:51.7]} 6. Bg2 {[%clk 0:04:50.9]} 6... Nxc3 {[%clk 0:04:50.8]}
7. bxc3 {[%clk 0:04:49.1]} 7... Bd6 {[%clk 0:04:49.7]} 8. d3 {[%clk 0:04:47.2]}
8... Bd7 {[%clk 0:04:46]} 9. O-O {[%clk 0:04:46.4]} 9... O-O {[%clk 0:04:44.9]}
10. Rb1 {[%clk 0:04:31.7]} 10... Rb8 {[%clk 0:04:43.9]} 11. Nd2 {[%clk 0:04:27]}
11... b6 {[%clk 0:04:40]} 12. e4 {[%clk 0:04:16.9]} 12... Be6 {[%clk 0:04:35.7]}
13. Qa4 {[%clk 0:03:53.1]} 13... Bd7 {[%clk 0:04:30.7]} 14. Qc2 {[%clk
0:03:47.9]} 14... a5 {[%clk 0:04:29.3]} 15. Nc4 {[%clk 0:03:46.2]} 15... Bc5
{[%clk 0:04:24.2]} 16. Ne3 {[%clk 0:03:38.3]} 16... Be6 {[%clk 0:04:21.5]} 17.
Nd5 {[%clk 0:03:33.7]} 17... Ne7 {[%clk 0:04:15.8]} 18. c4 {[%clk 0:03:25.7]}
18... c6 {[%clk 0:04:13.8]} 19. Nxe7+ {[%clk 0:03:12.5]} 19... Qxe7 {[%clk
0:04:09.9]} 20. Be3 {[%clk 0:03:11.3]} 20... Bxe3 {[%clk 0:04:02.8]} 21. fxe3
{[%clk 0:03:11.2]} 21... b5 {[%clk 0:04:00.1]} 22. c5 {[%clk 0:02:48.9]} 22...
Rfd8 {[%clk 0:03:55]} 23. Rbd1 {[%clk 0:02:44.4]} 23... f6 {[%clk 0:03:49.1]}
24. d4 {[%clk 0:02:42.9]} 24... Bc4 {[%clk 0:03:42.6]} 25. Rf2 {[%clk
0:02:33.4]} 25... exd4 {[%clk 0:03:41.3]} 26. exd4 {[%clk 0:02:30.8]} 26... Qe6
{[%clk 0:03:37.4]} 27. Rfd2 {[%clk 0:02:20.7]} 27... Qe7 {[%clk 0:03:26.3]} 28.
Qc3 {[%clk 0:02:09]} 28... a4 {[%clk 0:03:19.9]} 29. Re1 {[%clk 0:01:56.6]}
29... Qf7 {[%clk 0:03:14.9]} 30. a3 {[%clk 0:01:51.1]} 30... Qe7 {[%clk
0:03:11]} 31. e5 {[%clk 0:01:41.9]} 31... Bd5 {[%clk 0:02:56.9]} 32. Bxd5+
{[%clk 0:01:36.6]} 32... Rxd5 {[%clk 0:02:55]} 33. Rde2 {[%clk 0:01:14.8]} 33...
Qf7 {[%clk 0:02:47.4]} 34. exf6 {[%clk 0:01:03.5]} 34... Qxf6 {[%clk 0:02:42.7]}
35. Re8+ {[%clk 0:00:46.5]} 35... Rxe8 {[%clk 0:02:40.7]} 36. Rxe8+ {[%clk
0:00:46.4]} 36... Kf7 {[%clk 0:02:39.6]} 37. Re4 {[%clk 0:00:43]} 37... g6
{[%clk 0:02:34.6]} 38. Qa5 {[%clk 0:00:35.2]} 38... Kg7 {[%clk 0:01:49.3]} 39.
Qc7+ {[%clk 0:00:32]} 39... Kh6 {[%clk 0:01:41.9]} 40. Rh4+ {[%clk 0:00:17.8]}
40... Rh5 {[%clk 0:01:40.8]} 41. Rxh5+ {[%clk 0:00:16.6]} 41... Kxh5 {[%clk
0:01:37.8]} 42. Qd7 {[%clk 0:00:13]} 42... Kh6 {[%clk 0:01:33.9]} 43. Kg2 {[%clk
0:00:11.9]} 43... g5 {[%clk 0:01:27.5]} 44. d5 {[%clk 0:00:10.5]} 44... Qb2+
{[%clk 0:01:19.5]} 45. Kh3 {[%clk 0:00:09.4]} 45... cxd5 {[%clk 0:01:16.1]} 46.
Qxd5 {[%clk 0:00:09.3]} 46... Qxa3 {[%clk 0:01:10.9]} 47. c6 {[%clk 0:00:08.8]}
47... g4+ {[%clk 0:01:09.1]} 48. Kxg4 {[%clk 0:00:07.5]} 48... Qb4+ {[%clk
0:01:08.1]} 49. Kh3 {[%clk 0:00:06.8]} 49... Qc3 {[%clk 0:01:03.5]} 50. Qe6+
{[%clk 0:00:06.3]} 50... Kg5 {[%clk 0:00:59.2]} 51. Qg4+ {[%clk 0:00:04.8]}
51... Kf6 {[%clk 0:00:58]} 52. Qf4+ {[%clk 0:00:03.9]} 52... Ke7 {[%clk
0:00:54.4]} 53. c7 {[%clk 0:00:03.8]} 53... Kd7 {[%clk 0:00:51.9]} 54. Qf7+
{[%clk 0:00:02.6]} 54... Kc8 {[%clk 0:00:50.5]} 55. Qxh7 {[%clk 0:00:02.3]}
55... a3 {[%clk 0:00:48.3]} 56. Qg8+ {[%clk 0:00:00.9]} 56... Kxc7 {[%clk
0:00:46.3]} 0-1

[Event "Live Chess"]
[Site "Chess.com"]
[Date "2024.06.01"]
[Round "-"]
[White "viktor_forever1994"]
[Black "13Alexey"]
[Result "0-1"]
[WhiteElo "1431"]
[BlackElo "739"]
[TimeControl "300"]
[EndTime "9:21:42 PDT"]
[Termination "13Alexey won on time"]

1. e4 {[%clk 0:04:58.3]} 1... e5 {[%clk 0:04:58.8]} 2. Nf3 {[%clk 0:04:58.2]}
2... Nc6 {[%clk 0:04:57.1]} 3. d4 {[%clk 0:04:58.1]} 3... exd4 {[%clk
0:04:55.6]} 4. Nxd4 {[%clk 0:04:58]} 4... Nxd4 {[%clk 0:04:52]} 5. Qxd4 {[%clk
0:04:57.9]} 5... Nf6 {[%clk 0:04:48.8]} 6. e5 {[%clk 0:04:56.2]} 6... Nh5 {[%clk
0:04:38.4]} 7. Be2 {[%clk 0:04:51.7]} 7... g6 {[%clk 0:04:34.6]} 8. O-O {[%clk
0:04:47.2]} 8... Bg7 {[%clk 0:04:24.3]} 9. Nc3 {[%clk 0:04:37.8]} 9... O-O
{[%clk 0:04:22.7]} 10. Bxh5 {[%clk 0:04:33.1]} 10... gxh5 {[%clk 0:04:18.6]} 11.
Bf4 {[%clk 0:04:15.9]} 11... Re8 {[%clk 0:04:16.8]} 12. Rad1 {[%clk 0:04:10.6]}
12... d6 {[%clk 0:04:14.6]} 13. Rfe1 {[%clk 0:04:04.1]} 13... Bf5 {[%clk
0:04:08]} 14. Rd2 {[%clk 0:03:36.9]} 14... dxe5 {[%clk 0:03:56.4]} 15. Qxd8
{[%clk 0:03:10.7]} 15... Raxd8 {[%clk 0:03:54.3]} 16. Rxd8 {[%clk 0:03:06.9]}
16... Rxd8 {[%clk 0:03:51.3]} 17. Bxe5 {[%clk 0:02:56.4]} 17... Bxe5 {[%clk
0:03:48.2]} 18. Rxe5 {[%clk 0:02:56.3]} 18... Bxc2 {[%clk 0:03:44.4]} 19. Rxh5
{[%clk 0:02:48.2]} 19... a6 {[%clk 0:03:36.1]} 20. h4 {[%clk 0:02:36.3]} 20...
b5 {[%clk 0:03:34.4]} 21. Rc5 {[%clk 0:02:31.3]} 21... b4 {[%clk 0:03:31.4]} 22.
Ne2 {[%clk 0:02:19.9]} 22... Rd2 {[%clk 0:03:20.5]} 23. Nf4 {[%clk 0:01:40.1]}
23... Bb1 {[%clk 0:03:07.9]} 24. a3 {[%clk 0:01:25.9]} 24... Rxb2 {[%clk
0:03:04]} 25. axb4 {[%clk 0:01:24.1]} 25... Rxb4 {[%clk 0:03:02.7]} 26. Nd5
{[%clk 0:01:19.2]} 26... Rb5 {[%clk 0:02:54.3]} 27. Rxb5 {[%clk 0:01:07.8]}
27... axb5 {[%clk 0:02:52.8]} 28. Nxc7 {[%clk 0:01:07.2]} 28... b4 {[%clk
0:02:50.8]} 29. Nd5 {[%clk 0:01:05.5]} 29... b3 {[%clk 0:02:49.4]} 30. Nc3
{[%clk 0:00:58.9]} 30... Bc2 {[%clk 0:02:42.5]} 31. Na4 {[%clk 0:00:53.2]} 31...
Kg7 {[%clk 0:02:37.4]} 32. Kf1 {[%clk 0:00:50]} 32... Kg6 {[%clk 0:02:35.9]} 33.
Ke2 {[%clk 0:00:46.4]} 33... h5 {[%clk 0:02:31.2]} 34. Kd2 {[%clk 0:00:44.9]}
34... f5 {[%clk 0:02:27.4]} 35. Kc3 {[%clk 0:00:42]} 35... f4 {[%clk 0:02:25.1]}
36. Nc5 {[%clk 0:00:39.3]} 36... Kf5 {[%clk 0:02:23.6]} 37. Nxb3 {[%clk
0:00:31.4]} 37... Bxb3 {[%clk 0:02:20.4]} 38. Kxb3 {[%clk 0:00:31.3]} 38... Kg4
{[%clk 0:02:19]} 39. Kc3 {[%clk 0:00:24.3]} 39... Kxh4 {[%clk 0:02:16.3]} 40.
Kd3 {[%clk 0:00:23.2]} 40... Kg4 {[%clk 0:02:15]} 41. Ke4 {[%clk 0:00:21.6]}
41... h4 {[%clk 0:02:12.3]} 42. f3+ {[%clk 0:00:16.1]} 42... Kg3 {[%clk
0:02:09.1]} 43. Kf5 {[%clk 0:00:14]} 43... Kxg2 {[%clk 0:02:03.3]} 44. Kxf4
{[%clk 0:00:12.9]} 44... h3 {[%clk 0:02:02.3]} 45. Kg4 {[%clk 0:00:11.6]} 45...
h2 {[%clk 0:02:00.8]} 46. f4 {[%clk 0:00:10.4]} 46... h1=Q {[%clk 0:01:58.1]}
47. f5 {[%clk 0:00:10.3]} 47... Qd1+ {[%clk 0:01:54.6]} 48. Kg5 {[%clk
0:00:09.3]} 48... Qd2+ {[%clk 0:01:51.2]} 49. Kg6 {[%clk 0:00:09.2]} 49... Qd6+
{[%clk 0:01:47.1]} 0-1